fUSD/lending_fUSD_20251220
["ID","MTS","AMOUNT","RATE_DAILY","PERIOD"]
[399236234,1766195446709,-1157.0,0.00016156,2]
[399236235,1766195446718,-724.0,0.00016156,2]
[399236236,1766195446727,-470.0,0.00016156,2]
[399236237,1766195446735,-3057.14,0.00016158,2]
[399236238,1766195446744,-1614.17,0.00016164,2]
[399236239,1766195446753,-12468.68072969,0.00016164,2]
[399236240,1766195446763,-663.93287602,0.00016187,2]
[399236241,1766195446772,-250.0,0.00016261,2]
[399236242,1766195446781,-216.87698702,0.00016279,2]
[399236243,1766195446790,-500.0,0.0001628,2]
[399236244,1766195446799,-200.0,0.0001628,2]
[399236245,1766195446808,-202.43639099,0.0001628,2]
[399236246,1766195446817,-166.66,0.00016292,2]
[399236247,1766195446826,-519.02968013,0.00016293,2]
[399236248,1766195446835,-1158.42070959,0.00016293,2]
[399236249,1766195446845,-557.69482467,0.00016293,2]
[399236250,1766195446853,-724.0,0.00016293,2]
[399236251,1766195446862,-470.0,0.00016293,2]
[399236252,1766195446872,-260.01917159,0.00016299,2]
[399236253,1766195446880,-500.29716194,0.000163,2]
[399236254,1766195446889,-500.0,0.000163,2]
[399236255,1766195446899,-500.0,0.000163,2]
[399236256,1766195446908,-500.0,0.000163,2]
[399236257,1766195446919,-500.33069287,0.000163,2]
[399236258,1766195446929,-500.0,0.000163,2]
[399236260,1766195446938,-500.0,0.000163,2]
[399236262,1766195446947,-500.0,0.000163,2]
[399236263,1766195446957,-500.0,0.000163,2]
[399236264,1766195446965,-162.35722153,0.000163,2]
[399236265,1766195446975,-334.5464899,0.000163,2]
[399236266,1766195446983,-330.6916765,0.000163,2]
[399236267,1766195446993,-500.0,0.000163,2]
[399236268,1766195447002,-500.0,0.000163,2]
[399236269,1766195447011,-500.48687625,0.000163,2]
[399236270,1766195447022,-162.03877535,0.000163,2]
[399236271,1766195447032,-500.19600128,0.000163,2]
[399236272,1766195447042,-570.20028222,0.000163,2]
[399236273,1766195447052,-500.0,0.000163,2]
[399236274,1766195447061,-500.0,0.000163,2]
[399236275,1766195447070,-500.0,0.000163,2]
[399236276,1766195447079,-500.0,0.000163,2]
[399236277,1766195447088,-500.0,0.000163,2]
[399236278,1766195447097,-500.0,0.000163,2]
[399236279,1766195447106,-500.5161197,0.000163,2]
[399236280,1766195447115,-500.4308882,0.000163,2]
[399236281,1766195447126,-518.77690272,0.000163,2]
[399236282,1766195447137,-500.0,0.000163,2]
[399236283,1766195447146,-500.0,0.000163,2]
[399236284,1766195447155,-333.44713486,0.000163,2]
[399236285,1766195447164,-500.0,0.000163,2]
[399236286,1766195447173,-500.37407939,0.000163,2]
[399236287,1766195447183,-500.44010865,0.000163,2]
[399236288,1766195447196,-500.30081252,0.000163,2]
[399236289,1766195447205,-500.5692733,0.000163,2]
[399236290,1766195447214,-555.87900727,0.000163,2]
[399236291,1766195447224,-168.09419939,0.000163,2]
[399236292,1766195447233,-500.0,0.000163,2]
[399236293,1766195447242,-590.13268338,0.000163,2]
[399236294,1766195447251,-500.0,0.000163,2]
[399236295,1766195447260,-452.09330567,0.000163,2]
[399236296,1766195447270,-426.51211002,0.000163,2]
[399236297,1766195447279,-500.0,0.000163,2]
[399236298,1766195447288,-543.08632529,0.000163,2]
[399236299,1766195447298,-516.37835686,0.000163,2]
[399236300,1766195447307,-500.0,0.000163,2]
[399236301,1766195447316,-523.00588269,0.000163,2]
[399236302,1766195447325,-500.0,0.000163,2]
[399236303,1766195447335,-162.24077786,0.000163,2]
[399236304,1766195447344,-500.0,0.000163,2]
[399236305,1766195447353,-500.0,0.000163,2]
[399236306,1766195447363,-500.59670517,0.000163,2]
[399236307,1766195447372,-500.0,0.000163,2]
[399236308,1766195447381,-177.2862913,0.000163,2]
[399236309,1766195447392,-500.34670783,0.000163,2]
[399236310,1766195447402,-500.0,0.000163,2]
[399236311,1766195447410,-500.34860131,0.000163,2]
[399236312,1766195447420,-500.0,0.000163,2]
[399236313,1766195447429,-500.0,0.000163,2]
[399236314,1766195447439,-166.91561833,0.000163,2]
[399236315,1766195447448,-500.0,0.000163,2]
[399236316,1766195447472,-500.0,0.000163,2]
[399236317,1766195447482,-161.07996631,0.000163,2]
[399236318,1766195447491,-159.43095819,0.000163,2]
[399236319,1766195447501,-500.30832876,0.000163,2]
[399236320,1766195447510,-500.16141079,0.000163,2]
[399236321,1766195447519,-500.0,0.000163,2]
[399236322,1766195447528,-500.0,0.000163,2]
[399236323,1766195447537,-500.0,0.000163,2]
[399236324,1766195447547,-500.0,0.000163,2]
[399236325,1766195447556,-500.45922425,0.000163,2]
[399236326,1766195447565,-500.0,0.000163,2]
[399236327,1766195447574,-500.0,0.000163,2]
[399236328,1766195447584,-500.0,0.000163,2]
[399236329,1766195447593,-468.55909228,0.000163,2]
[399236330,1766195447603,-577.20648211,0.000163,2]
[399236331,1766195447612,-220.27121476,0.000163,2]
[399236332,1766195447621,-500.0,0.000163,2]
[399236333,1766195447631,-529.96646376,0.000163,2]
[399236334,1766195447640,-344.64845159,0.000163,2]
[399236335,1766195447650,-150.0,0.00016307,2]
[399236336,1766195447660,-293.77087501,0.00016348,2]
[399236337,1766195447671,-238.59,0.00016368,2]
[399236338,1766195447680,-228.0,0.000164,2]
[399236339,1766195447690,-319.0,0.000164,2]
[399236340,1766195447699,-182.0,0.000164,2]
[399236341,1766195447708,-183.63284637,0.000164,2]
[399236342,1766195447718,-781.98194751,0.00016427,2]
[399236343,1766195447727,-724.0,0.0001643,2]
[399236344,1766195447736,-470.0,0.0001643,2]
[399236345,1766195447745,-500.0,0.00016438,2]
[399236346,1766195447754,-500.0,0.00016438,2]
[399236347,1766195447763,-500.0,0.00016438,2]
[399236348,1766195447774,-500.0,0.00016438,2]
[399236349,1766195447783,-500.0,0.00016438,2]
[399236350,1766195447791,-500.0,0.00016438,2]
[399236351,1766195447808,-500.0,0.00016438,2]
[399236352,1766195447820,-500.0,0.00016438,2]
[399236353,1766195447829,-500.0,0.00016438,2]
[399236354,1766195447838,-500.0,0.00016438,2]
[399236355,1766195447847,-500.0,0.00016438,2]
[399236356,1766195447856,-500.0,0.00016438,2]
[399236357,1766195447865,-500.0,0.00016438,2]
[399236358,1766195447875,-500.0,0.00016438,2]
[399236359,1766195447884,-500.0,0.00016438,2]
[399236360,1766195447893,-500.0,0.00016438,2]
[399236361,1766195447902,-500.0,0.00016438,2]
[399236362,1766195447911,-500.0,0.00016438,2]
[399236363,1766195447920,-500.0,0.00016438,2]
[399236364,1766195447929,-500.0,0.00016438,2]
[399236365,1766195447939,-597.42503462,0.00016438,2]
[399236366,1766195447948,-500.0,0.00016438,2]
[399236367,1766195447958,-500.0,0.00016438,2]
[399236368,1766195447968,-500.0,0.00016438,2]
[399236369,1766195447978,-500.0,0.00016438,2]
[399236370,1766195447988,-500.0,0.00016438,2]
[399236371,1766195447997,-500.0,0.00016438,2]
[399236372,1766195448007,-500.0,0.00016438,2]
[399236373,1766195448016,-500.0,0.00016438,2]
[399236374,1766195448025,-500.0,0.00016438,2]
[399236375,1766195448034,-500.0,0.00016438,2]
[399236376,1766195448043,-500.0,0.00016438,2]
[399236377,1766195448052,-500.0,0.00016438,2]
[399236378,1766195448062,-500.0,0.00016438,2]
[399236379,1766195448071,-500.0,0.00016438,2]
[399236380,1766195448081,-500.0,0.00016438,2]
[399236381,1766195448090,-500.0,0.00016438,2]
[399236382,1766195448099,-500.0,0.00016438,2]
[399236383,1766195448109,-500.0,0.00016438,2]
[399236384,1766195448119,-500.0,0.00016438,2]
[399236385,1766195448131,-500.0,0.00016438,2]
[399236386,1766195448140,-500.0,0.00016438,2]
[399236387,1766195448149,-500.0,0.00016438,2]
[399236388,1766195448158,-500.0,0.00016438,2]
[399236389,1766195448168,-526.08253963,0.00016438,2]
[399236390,1766195448178,-526.08253963,0.00016438,2]
[399236391,1766195448187,-526.08253963,0.00016438,2]
[399236392,1766195448200,-526.08253963,0.00016438,2]
[399236393,1766195448209,-526.08253963,0.00016438,2]
[399236394,1766195448219,-526.08253963,0.00016438,2]
[399236395,1766195448228,-526.08253963,0.00016438,2]
[399236396,1766195448237,-526.08253963,0.00016438,2]
[399236397,1766195448246,-526.08253963,0.00016438,2]
[399236398,1766195448256,-526.08253963,0.00016438,2]
[399236399,1766195448269,-526.08253963,0.00016438,2]
[399236400,1766195448279,-526.08253963,0.00016438,2]
[399236401,1766195448288,-526.08253963,0.00016438,2]
[399236402,1766195448297,-526.08253963,0.00016438,2]
[399236403,1766195448307,-526.08253963,0.00016438,2]
[399236404,1766195448315,-526.08253963,0.00016438,2]
[399236405,1766195448325,-526.08253963,0.00016438,2]
[399236406,1766195448334,-526.08253963,0.00016438,2]
[399236407,1766195448343,-526.08253963,0.00016438,2]
[399236408,1766195448352,-526.08253963,0.00016438,2]
[399236409,1766195448362,-526.08253963,0.00016438,2]
[399236410,1766195448373,-526.08253963,0.00016438,2]
[399236411,1766195448384,-526.08253963,0.00016438,2]
[399236412,1766195448393,-526.08253963,0.00016438,2]
[399236413,1766195448402,-526.08253963,0.00016438,2]
[399236414,1766195448411,-526.08253963,0.00016438,2]
[399236415,1766195448421,-526.08253963,0.00016438,2]
[399236416,1766195448431,-526.08253963,0.00016438,2]
[399236417,1766195448441,-526.08253963,0.00016438,2]
[399236418,1766195448452,-526.08253963,0.00016438,2]
[399236419,1766195448462,-526.08253963,0.00016438,2]
[399236420,1766195448473,-526.08253963,0.00016438,2]
[399236421,1766195448483,-526.08253963,0.00016438,2]
[399236422,1766195448493,-526.08253963,0.00016438,2]
[399236423,1766195448502,-526.08253963,0.00016438,2]
[399236424,1766195448511,-526.08253963,0.00016438,2]
[399236425,1766195448521,-526.08253963,0.00016438,2]
[399236426,1766195448531,-526.08253963,0.00016438,2]
[399236427,1766195448542,-526.08253963,0.00016438,2]
[399236428,1766195448551,-526.08253963,0.00016438,2]
[399236429,1766195448560,-526.08253963,0.00016438,2]
[399236430,1766195448569,-526.08253963,0.00016438,2]
[399236431,1766195448583,-526.08253963,0.00016438,2]
[399236432,1766195448592,-526.08253963,0.00016438,2]
[399236433,1766195448601,-526.08253956,0.00016438,2]
[399236434,1766195448610,-500.0,0.00016438,2]
[399236435,1766195448620,-500.0,0.00016438,2]
[399236436,1766195448629,-500.0,0.00016438,2]
[399236437,1766195448639,-500.0,0.00016438,2]
[399236438,1766195448648,-500.0,0.00016438,2]
[399236439,1766195448657,-500.0,0.00016438,2]
[399236440,1766195448666,-500.0,0.00016438,2]
[399236441,1766195448676,-1614.17,0.00016438,2]
[399236442,1766195448686,-225.86,0.00016438,2]
[399236443,1766195448696,-3000.71,0.00016438,2]
[399236444,1766195448706,-900.0,0.00016438,2]
[399236445,1766195448715,-800.62641417,0.00016438,2]
[399236446,1766195448724,-12250.74,0.00016438,2]
[399236447,1766195448733,-164.42,0.0001644,2]
[399236448,1766195448743,-164.42,0.0001644,2]
[399236449,1766195448752,-2609.34995974,0.00016512,2]
[399236450,1766195448761,-3000.0,0.00016512,2]
[399236451,1766195448771,-500.0,0.00016521,2]
[399236452,1766195448781,-16408.58760563,0.00016527,2]
[399236453,1766195448790,-500.0,0.00016532,2]
[399236454,1766195448799,-12468.68072969,0.00016532,2]
[399236455,1766195448808,-740.43315878,0.00016567,2]
[399236456,1766195448818,-473.34451461,0.00016567,2]
[399236457,1766195448827,-500.0,0.00016575,2]
[399236458,1766195448836,-150.0,0.00016647,2]
[399236459,1766195448845,-12375.00024842,0.0001666,2]
[399236460,1766195448854,-500.0,0.00016712,2]
[399236461,1766195448864,-1614.17,0.00016712,2]
[399236462,1766195448874,-645.0,0.00016716,2]
[399236463,1766195448884,-153.69901864,0.00016733,2]
[399236464,1766195448893,-329.35809351,0.00016733,2]
[399236465,1766195448902,-642.94,0.00016734,2]
[399236466,1766195448913,-598.71268176,0.00016734,2]
[399236467,1766195448923,-1199.0,0.00016734,2]
[399236468,1766195448933,-688.49839244,0.00016735,2]
[399236469,1766195448942,-268.48828966,0.00016748,2]
[399236470,1766195448952,-166.66,0.00016812,2]
[399236471,1766195448966,-268.48828964,0.00016824,2]
[399236472,1766195448975,-500.0,0.00016828,2]
[399236473,1766195448985,-200.0,0.00016828,2]
[399236474,1766195448994,-204.96960909,0.00016831,2]
[399236475,1766195449003,-500.0,0.00016847,2]
[399236476,1766195449013,-500.0,0.00016847,2]
[399236477,1766195449023,-500.0,0.00016847,2]
[399236478,1766195449034,-500.65137842,0.00016848,2]
[399236479,1766195449045,-1000.87754816,0.00016848,2]
[399236480,1766195449055,-1000.0,0.00016848,2]
[399236481,1766195449065,-179.47316237,0.00016848,2]
[399236482,1766195449075,-1000.0,0.00016848,2]
[399236483,1766195449085,-1001.13256122,0.00016848,2]
[399236484,1766195449094,-1001.19540644,0.00016848,2]
[399236485,1766195449103,-1001.39291005,0.00016848,2]
[399236486,1766195449112,-1000.91698308,0.00016848,2]
[399236487,1766195449124,-1000.76703223,0.00016848,2]
[399236488,1766195449133,-1000.0,0.00016848,2]
[399236489,1766195449142,-1000.0,0.00016848,2]
[399236490,1766195449151,-1000.87355102,0.00016848,2]
[399236491,1766195449160,-1001.01249642,0.00016848,2]
[399236492,1766195449169,-1001.0881382,0.00016848,2]
[399236493,1766195449178,-1001.31913615,0.00016848,2]
[399236494,1766195449188,-1001.02020729,0.00016848,2]
[399236495,1766195449197,-1002.26047729,0.00016848,2]
[399236496,1766195449206,-1001.04078122,0.00016848,2]
[399236497,1766195449215,-1001.0574546,0.00016848,2]
[399236498,1766195449223,-1001.94292641,0.00016848,2]
[399236499,1766195449232,-1000.96314567,0.00016848,2]
[399236500,1766195449241,-998.88830841,0.00016848,2]
[399236501,1766195449250,-1001.04801864,0.00016848,2]
[399236502,1766195449259,-221.90485079,0.00016848,2]
[399236503,1766195449269,-1000.0,0.00016848,2]
[399236504,1766195449278,-501.13881872,0.00016848,2]
[399236505,1766195449287,-1001.62933113,0.00016848,2]
[399236506,1766195449296,-1001.1215833,0.00016848,2]
[399236507,1766195449304,-501.11789279,0.00016848,2]
[399236508,1766195449314,-1002.65559415,0.00016848,2]
[399236509,1766195449323,-1000.0,0.00016848,2]
[399236510,1766195449333,-1000.866265,0.00016848,2]
[399236511,1766195449342,-1001.82577211,0.00016848,2]
[399236512,1766195449355,-1000.9465121,0.00016848,2]
[399236513,1766195449364,-1000.83354161,0.00016848,2]
[399236514,1766195449373,-1001.6968188,0.00016848,2]
[399236515,1766195449382,-1004.81720167,0.00016848,2]
[399236516,1766195449392,-1001.50110893,0.00016848,2]
[399236517,1766195449402,-500.0,0.00016849,2]
[399236518,1766195449411,-266.0,0.00016857,2]
[399236519,1766195449422,-200.0,0.00016863,2]
[399236520,1766195449432,-200.0,0.00016864,2]
[399236521,1766195449442,-500.0,0.00016873,2]
[399236522,1766195449452,-25000.0,0.00016874,3]
[399236523,1766195449463,-25000.0,0.00016882,3]
[399236524,1766195449473,-25000.0,0.00016891,3]
[399236525,1766195449483,-154.90930279,0.00016897,2]
[399236526,1766195449494,-1000.0,0.000169,2]
[399236527,1766195449503,-33491.4068,0.000169,2]
[399236528,1766195449513,-10000.0,0.000169,2]
[399236529,1766195449522,-6773.0744,0.000169,2]
[399236530,1766195449531,-25000.0,0.000169,3]
[399236531,1766195449541,-293.77087501,0.000169,2]
[399236532,1766195449550,-268.48828964,0.000169,2]
[399236533,1766195449561,-16408.58760563,0.000169,2]
[399236534,1766195449570,-781.98194751,0.000169,2]
[399236535,1766195449580,-12468.68072969,0.000169,2]
[399236536,1766195449589,-695.34142668,0.000169,3]
[399236537,1766195449599,-1014.85378629,0.000169,2]
[399236538,1766195449608,-2140.41856261,0.000169,2]
[399236539,1766195449617,-821.26193203,0.000169,2]
[399236540,1766195449627,-632.50745291,0.000169,2]
[399236541,1766195449636,-539.9834266,0.000169,2]
[399236542,1766195449646,-500.0,0.000169,2]
[399236543,1766195449656,-500.0,0.000169,2]
[399236544,1766195449665,-500.0,0.000169,2]
[399236545,1766195449674,-500.0,0.000169,2]
[399236546,1766195449683,-500.0,0.000169,2]
[399236547,1766195449692,-500.0,0.000169,2]
[399236548,1766195449701,-500.0,0.000169,2]
[399236549,1766195449710,-500.0,0.000169,2]
[399236550,1766195449719,-500.0,0.000169,2]
[399236551,1766195449728,-500.0,0.000169,2]
[399236552,1766195449740,-500.0,0.000169,2]
[399236553,1766195449749,-500.0,0.000169,2]
[399236554,1766195449758,-500.0,0.000169,2]
[399236555,1766195449767,-500.0,0.000169,2]
[399236556,1766195449778,-500.0,0.000169,2]
[399236557,1766195449788,-500.0,0.000169,2]
[399236558,1766195449798,-165.68557918,0.000169,2]
[399236559,1766195449808,-10048.0,0.000169,2]
[399236560,1766195449818,-184.13,0.00016946,2]
[399236561,1766195449827,-150.10981544,0.00016973,2]
[399236562,1766195449837,-150.09235231,0.00016973,2]
[399236563,1766195449847,-163.39899626,0.00016973,2]
[399236564,1766195449857,-500.0,0.00016973,2]
[399236565,1766195449868,-150.0,0.00016973,2]
[399236566,1766195449879,-500.0,0.00016979,2]
[399236567,1766195449889,-500.0,0.00016979,2]
[399236568,1766195449899,-500.0,0.00016979,2]
[399236569,1766195449909,-500.0,0.00016979,2]
[399236570,1766195449920,-500.0,0.00016979,2]
[399236571,1766195449929,-500.0,0.00016979,2]
[399236572,1766195449939,-344.13005427,0.00016979,2]
[399236573,1766195449949,-500.0,0.00016979,2]
[399236574,1766195449959,-500.0,0.00016979,2]
[399236575,1766195449969,-500.0,0.00016979,2]
[399236576,1766195449978,-500.0,0.00016979,2]
[399236577,1766195449988,-500.0,0.00016979,2]
[399236578,1766195449998,-500.0,0.00016979,2]
[399236579,1766195450007,-927.3587432,0.0001698,2]
[399236580,1766195450017,-475750.7963032,0.0001698,2]
[399236581,1766195450026,-129840.5887915,0.0001698,2]
[399236582,1766195450037,-153.5898,0.0001698,2]
[399236583,1766195450048,-151.0,0.0001698,2]
[399236584,1766195450059,-151.0,0.0001698,2]
[399236585,1766195450068,-151.0,0.0001698,2]
[399236586,1766195450249,-151.0,0.0001698,2]
[399236587,1766195450259,-151.0,0.0001698,2]
[399236588,1766195450270,-151.0,0.0001698,2]
[399236589,1766195450280,-151.0,0.0001698,2]
[399236590,1766195450290,-151.0,0.0001698,2]
[399236591,1766195450299,-159.098498,0.0001698,2]
[399236592,1766195450309,-159.098498,0.0001698,2]
[399236593,1766195450318,-159.098498,0.0001698,2]
[399236594,1766195450328,-159.098498,0.0001698,2]
[399236595,1766195450338,-151.0,0.0001698,2]
[399236596,1766195450348,-151.0,0.0001698,2]
[399236597,1766195450357,-151.0,0.0001698,2]
[399236598,1766195450366,-151.0,0.0001698,2]
[399236599,1766195450376,-151.0,0.0001698,2]
[399236600,1766195450386,-151.0,0.0001698,2]
[399236601,1766195450396,-151.0,0.0001698,2]
[399236602,1766195450406,-151.0,0.0001698,2]
[399236603,1766195450417,-151.0,0.0001698,2]
[399236604,1766195450426,-151.0,0.0001698,2]
[399236605,1766195450448,-500.0,0.00016986,2]
[399236606,1766195450457,-1614.17,0.00016986,2]
[399236607,1766195450468,-52959.45,0.00016986,2]
[399236608,1766195450478,-164.76564826,0.00016986,2]
[399236609,1766195450489,-868.13960377,0.0001699,2]
[399236610,1766195450499,-868.13960377,0.0001699,2]
[399236611,1766195450508,-290.51016381,0.00016996,2]
[399236612,1766195450517,-1500.0,0.00016998,2]
[399236613,1766195450527,-1527.47643038,0.00016998,2]
[399236614,1766195450536,-1500.0,0.00016998,2]
[399236615,1766195450546,-1022.85029258,0.00016999,5]
[399236616,1766195450556,-1022.85029259,0.00016999,5]
[399236617,1766195450566,-1018.23651843,0.00016999,5]
[399236618,1766195450575,-1018.23651841,0.00016999,5]
[399236619,1766195450585,-1018.23651841,0.00016999,5]
[399236620,1766195450594,-1018.23651841,0.00016999,5]
[399236621,1766195450604,-500.0,0.00016999,2]
[399236622,1766195450614,-500.0,0.00016999,2]
[399236623,1766195450623,-500.0,0.00016999,2]
[399236624,1766195450633,-500.0,0.00016999,2]
[399236625,1766195450643,-201.83,0.00016999,2]
[399236626,1766195450652,-500.0,0.00016999,2]
[399236627,1766195450661,-500.0,0.00016999,2]
[399236628,1766195450671,-500.0,0.00016999,2]
[399236629,1766195450680,-500.0,0.00016999,2]
[399236630,1766195450689,-500.0,0.00016999,2]
[399236631,1766195450700,-500.0,0.00016999,2]
[399236632,1766195450709,-500.0,0.00016999,2]
[399236633,1766195450719,-500.0,0.00016999,2]
[399236634,1766195450729,-527.06873732,0.00016999,2]
[399236635,1766195450738,-500.0,0.00016999,2]
[399236636,1766195450748,-500.0,0.00016999,2]
[399236637,1766195450758,-500.0,0.00016999,2]
[399236638,1766195450767,-500.0,0.00016999,2]
[399236639,1766195450776,-500.0,0.00016999,2]
[399236640,1766195450785,-500.0,0.00016999,2]
[399236641,1766195450795,-500.0,0.00016999,2]
[399236642,1766195450805,-500.0,0.00016999,2]
[399236643,1766195450814,-592.36853989,0.00016999,2]
[399236644,1766195450823,-308.45911544,0.00016999,2]
[399236645,1766195450836,-520161.64700405,0.00017,2]
[399236646,1766195451084,-642.2986497,0.00017,2]
[399236647,1766195451096,-2243.60294719,0.00017,2]
[399236648,1766195451107,-1877.68199999,0.00017,2]
[399236649,1766195451119,-8656.82674949,0.00017,2]
[399236650,1766195451135,-8947.21879473,0.00017,2]
[399236651,1766195451146,-8943.78386462,0.00017,2]
[399236652,1766195451157,-9077.54866152,0.00017,2]
[399236653,1766195451168,-8943.84023489,0.00017,2]
[399236654,1766195451179,-653.68413682,0.00017,2]
[399236655,1766195451190,-278.33428687,0.00017,2]
[399236656,1766195451201,-2484.7009031,0.00017,2]
[399236657,1766195451223,-532.36824323,0.000159,2]
[399236658,1766195451232,-881370.82098437,0.00017,2]
[399236659,1766195451286,-507.20615774,0.00017,2]
[399236660,1766195451297,-328.26696821,0.00017,2]
[399236661,1766195451308,-878.45672583,0.00017,2]
[399236662,1766195451408,-18508.1988637,0.00017,2]
[399236663,1766195451419,-872.68780708,0.00017,2]
[399236664,1766195451430,-488.750531,0.00017,2]
[399236665,1766195451441,-1208.0,0.00017,2]
[399236666,1766195451454,-804.9096726,0.00017,2]
[399236667,1766195451465,-804.27294865,0.00017,2]
[399236668,1766195451476,-37504.77446693,0.00017,2]
[399236669,1766195451493,-739.94,0.000169,2]
[399236670,1766195451505,-900.862616,0.000169,2]
[399236672,1766195729463,999.0,0.00012863,3]
[399236673,1766195873789,363.7,0.00022,30]
[399236674,1766196026685,7966.68027223,0.00017855,30]
[399236675,1766196068471,288.077855,7.945e-05,2]
[399236676,1766196089047,389.01625,0.00023,120]
[399236677,1766196119252,848.87574,0.00023,120]
[399236678,1766196153058,387.48021,0.00023,120]
[399236679,1766196221026,2734.17,0.00011958,2]
[399236680,1766196293924,1852.42,0.00011866,2]
[399236698,1766196493693,238.21426617,0.00011987,2]
[399236700,1766196499816,183.21349246,0.00011987,2]
[399236701,1766196499837,98.52246763,0.00011987,2]
[399236703,1766196531996,5113.95,0.00011958,2]
[399236706,1766196586781,208.25,0.00011972,2]
[399236717,1766196632181,-249.0,0.00012081,2]
[399236718,1766196632191,-250.0,0.00012081,2]
[399236719,1766196632201,-101.0,0.00012081,2]
[399236720,1766196632234,-50.0,0.00012081,2]
[399236721,1766196632243,-151.0,0.00012081,2]
[399236722,1766196632256,-1200.0,0.00012082,2]
[399236723,1766196632274,-300.0,0.00012082,2]
[399236724,1766196632286,-300.0,0.00012082,2]
[399236725,1766196632295,-250.0,0.00012082,2]
[399236726,1766196632305,-150.0,0.00012083,2]
[399236727,1766196632315,-633.46641145,0.00012083,2]
[399236728,1766196632324,-209.97774737,0.00012083,2]
[399236729,1766196632334,-500.0,0.00012083,2]
[399236730,1766196632344,-500.0,0.00012083,2]
[399236731,1766196632353,-267.21766642,0.00012083,2]
[399236732,1766196632362,-12759.79272208,0.00012084,2]
[399236733,1766196632378,-1000.0,0.00012084,2]
[399236745,1766196638329,-467.85096425,0.00012084,2]
[399236746,1766196638435,-424.45082448,0.00012084,2]
[399236747,1766196638447,-3557.43337959,0.00012084,2]
[399236748,1766196638458,-981790.4721096,0.00012084,2]
[399236749,1766196638467,-15123.94,0.00012098,2]
[399236750,1766196638477,-12746.64,0.00012184,2]
[399236751,1766196638487,-1500.0,0.0001224,2]
[399236752,1766196638496,-500.0,0.00012331,2]
[399236753,1766196638506,-18892.77,0.00012397,2]
[399236754,1766196638515,-3692.35,0.00012397,2]
[399236755,1766196638525,-150.99,0.00012397,2]
[399236756,1766196638534,-500.0,0.00012455,2]
[399236757,1766196638543,-5722.67,0.00012455,2]
[399236758,1766196638553,-534.94,0.00012696,2]
[399236759,1766196638562,-197.64230935,0.00012722,2]
[399236760,1766196638572,-230.0,0.00012726,2]
[399236761,1766196638581,-500.0,0.0001274,2]
[399236762,1766196638591,-500.0,0.0001274,2]
[399236763,1766196638600,-500.0,0.0001274,2]
[399236764,1766196638609,-150.0,0.0001274,2]
[399236765,1766196638618,-150.0,0.0001274,2]
[399236766,1766196638627,-150.0,0.00012748,2]
[399236767,1766196638637,-500.0,0.00012748,2]
[399236769,1766196638646,-150.0,0.00012748,2]
[399236771,1766196638655,-27680.72,0.0001275,2]
[399236773,1766196638664,-2756.9178,0.00012822,2]
[399236782,1766196638904,-29433.4938,0.00012822,2]
[399236783,1766196638914,-500.0,0.00012877,2]
[399236784,1766196638924,-500.0,0.00012877,2]
[399236785,1766196638933,-500.0,0.00012877,2]
[399236786,1766196638943,-150.0,0.00012885,2]
[399236787,1766196638952,-500.0,0.00012885,2]
[399236788,1766196638962,-1392.83733733,0.00012889,2]
[399236789,1766196638971,-2001.38,0.00012893,2]